[Event "Titled Tuesday Blitz June 1 2021"]
[White "Abdusattorov, Nodirbek"]
[Black "Viswanadha, Kesav"]
[WhiteFideId "14204118"]
[BlackFideId "2059533"]
[WhiteElo "2662"]
[BlackElo "2191"]
[Result "1-0"]
[Round "01"]
[TimeControl "180+1"]
[Date "2021.06.01"]
[WhiteClock "0:01:28"]
[BlackClock "0:00:20"]

1. d4 {[%clk 0:03:00]}  Nf6 {[%clk 0:02:59]} 2. Bg5 {[%clk 0:03:00]}  d5 {[%clk 0:02:58]} 3. Bxf6 {[%clk 0:02:59]}  gxf6 {[%clk 0:02:59]} 4. e3 {[%clk 0:02:59]}  c5 {[%clk 0:02:59]} 5. Nf3 {[%clk 0:02:59]}  Nc6 {[%clk 0:02:58]} 6. dxc5 {[%clk 0:02:58]}  e6 {[%clk 0:02:58]} 7. c4 {[%clk 0:02:58]}  dxc4 {[%clk 0:02:54]} 8. Qxd8+ {[%clk 0:02:59]}  Kxd8 {[%clk 0:02:54]} 9. Bxc4 {[%clk 0:03:00]}  Bxc5 {[%clk 0:02:54]} 10. Nc3 {[%clk 0:03:01]}  Ke7 {[%clk 0:02:52]} 11. Ke2 {[%clk 0:03:01]}  b6 {[%clk 0:02:51]} 12. Rac1 {[%clk 0:03:01]}  Bb7 {[%clk 0:02:51]} 13. a3 {[%clk 0:03:01]}  Rac8 {[%clk 0:02:44]} 14. Ne4 {[%clk 0:02:57]}  Bd6 {[%clk 0:02:44]} 15. Nxd6 {[%clk 0:02:55]}  Kxd6 {[%clk 0:02:44]} 16. Rhd1+ {[%clk 0:02:54]}  Ke7 {[%clk 0:02:45]} 17. Bd3 {[%clk 0:02:46]}  h6 {[%clk 0:02:43]} 18. b4 {[%clk 0:02:38]}  Rhd8 {[%clk 0:02:42]} 19. Be4 {[%clk 0:02:15]}  Ba6+ {[%clk 0:02:32]} 20. Ke1 {[%clk 0:02:13]}  Ne5 {[%clk 0:02:27]} 21. Nd4 {[%clk 0:02:08]}  f5 {[%clk 0:02:24]} 22. f4 {[%clk 0:02:06]}  fxe4 {[%clk 0:01:54]} 23. fxe5 {[%clk 0:02:05]}  Bb7 {[%clk 0:01:48]} 24. Kf2 {[%clk 0:01:58]}  Bd5 {[%clk 0:01:44]} 25. g4 {[%clk 0:01:56]}  f6 {[%clk 0:01:39]} 26. exf6+ {[%clk 0:01:54]}  Kxf6 {[%clk 0:01:40]} 27. Kg3 {[%clk 0:01:55]}  Bc4 {[%clk 0:01:23]} 28. h4 {[%clk 0:01:51]}  Bd3 {[%clk 0:01:19]} 29. g5+ {[%clk 0:01:49]}  hxg5 {[%clk 0:00:51]} 30. hxg5+ {[%clk 0:01:50]}  Kg6 {[%clk 0:00:51]} 31. Kf4 {[%clk 0:01:44]}  Rxc1 {[%clk 0:00:47]} 32. Rxc1 {[%clk 0:01:45]}  Rf8+ {[%clk 0:00:23]} 33. Ke5 {[%clk 0:01:44]}  Rf3 {[%clk 0:00:23]} 34. Re1 {[%clk 0:01:27]}  Rf2 {[%clk 0:00:20]} 35. Nxe6 {[%clk 0:01:27]}  Ra2 {[%clk 0:00:21]} 36. Rh1 {[%clk 0:01:26]}  Rxa3 {[%clk 0:00:21]} 37. Rh6+ {[%clk 0:01:27]}  Kf7 {[%clk 0:00:20]} 38. g6+ {[%clk 0:01:28]}  Kg8 {[%clk 0:00:20]} 39. g7 {[%clk 0:01:28]} 1-0


[Site "https://www.chess.com"]

[Event "Titled Tuesday Blitz June 1 2021"]
[White "Andreikin, Dmitry"]
[Black "Rozhkov, Viacheslav"]
[WhiteFideId "4158814"]
[BlackFideId "4181484"]
[WhiteElo "2782"]
[BlackElo "2324"]
[Result "1-0"]
[Round "01"]
[TimeControl "180+1"]
[Date "2021.06.01"]
[WhiteClock "0:01:31"]
[BlackClock "0:00:14"]

1. d4 {[%clk 0:02:59]}  d5 {[%clk 0:02:57]} 2. Nf3 {[%clk 0:02:58]}  Nf6 {[%clk 0:02:57]} 3. c4 {[%clk 0:02:59]}  dxc4 {[%clk 0:02:56]} 4. e3 {[%clk 0:02:57]}  e6 {[%clk 0:02:56]} 5. Bxc4 {[%clk 0:02:57]}  a6 {[%clk 0:02:56]} 6. O-O {[%clk 0:02:56]}  b5 {[%clk 0:02:55]} 7. Bd3 {[%clk 0:02:50]}  Bb7 {[%clk 0:02:55]} 8. a4 {[%clk 0:02:49]}  b4 {[%clk 0:02:53]} 9. Nbd2 {[%clk 0:02:47]}  c5 {[%clk 0:02:52]} 10. e4 {[%clk 0:02:46]}  cxd4 {[%clk 0:02:51]} 11. Qe2 {[%clk 0:02:41]}  Be7 {[%clk 0:02:44]} 12. Nc4 {[%clk 0:02:40]}  O-O {[%clk 0:02:35]} 13. Bf4 {[%clk 0:02:40]}  Nbd7 {[%clk 0:02:21]} 14. Nd6 {[%clk 0:02:31]}  Qb8 {[%clk 0:01:48]} 15. Nxb7 {[%clk 0:02:24]}  Qxf4 {[%clk 0:01:48]} 16. Rfc1 {[%clk 0:02:19]}  Ng4 {[%clk 0:01:40]} 17. g3 {[%clk 0:02:13]}  Qb8 {[%clk 0:01:32]} 18. Na5 {[%clk 0:02:10]}  Nge5 {[%clk 0:01:26]} 19. Nc6 {[%clk 0:01:50]}  Nxc6 {[%clk 0:01:13]} 20. Rxc6 {[%clk 0:01:51]}  a5 {[%clk 0:00:51]} 21. Rac1 {[%clk 0:01:49]}  h6 {[%clk 0:00:26]} 22. e5 {[%clk 0:01:46]}  g6 {[%clk 0:00:22]} 23. Qe4 {[%clk 0:01:43]}  Qb7 {[%clk 0:00:19]} 24. Qf4 {[%clk 0:01:33]}  Bg5 {[%clk 0:00:16]} 25. Nxg5 {[%clk 0:01:32]}  hxg5 {[%clk 0:00:17]} 26. Qxg5 {[%clk 0:01:32]}  Rac8 {[%clk 0:00:15]} 27. Bxg6 {[%clk 0:01:32]}  Rxc6 {[%clk 0:00:14]} 28. Be4+ {[%clk 0:01:31]}  Kh8 {[%clk 0:00:14]} 29. Qh6+ {[%clk 0:01:31]} 1-0


[Site "https://www.chess.com"]

[Event "Titled Tuesday Blitz June 1 2021"]
[White "Garcia, Gabriel Gonzaga"]
[Black "Demchenko, Anton"]
[WhiteFideId "2138956"]
[BlackFideId "4160258"]
[WhiteElo "2240"]
[BlackElo "2593"]
[Result "0-1"]
[Round "01"]
[TimeControl "180+1"]
[Date "2021.06.01"]
[WhiteClock "0:00:07"]
[BlackClock "0:01:51"]

1. e4 {[%clk 0:02:59]}  c5 {[%clk 0:02:58]} 2. Nf3 {[%clk 0:02:59]}  d6 {[%clk 0:02:58]} 3. d4 {[%clk 0:02:59]}  cxd4 {[%clk 0:02:58]} 4. Qxd4 {[%clk 0:03:00]}  Nc6 {[%clk 0:02:58]} 5. Bb5 {[%clk 0:03:01]}  a6 {[%clk 0:02:58]} 6. Bxc6+ {[%clk 0:03:01]}  bxc6 {[%clk 0:02:59]} 7. Bg5 {[%clk 0:03:02]}  h6 {[%clk 0:02:58]} 8. Bh4 {[%clk 0:03:02]}  Qc7 {[%clk 0:02:50]} 9. Nc3 {[%clk 0:03:02]}  e5 {[%clk 0:02:47]} 10. Qd3 {[%clk 0:03:02]}  Be6 {[%clk 0:02:44]} 11. O-O-O {[%clk 0:02:56]}  g5 {[%clk 0:02:42]} 12. Bg3 {[%clk 0:02:56]}  Nf6 {[%clk 0:02:42]} 13. h4 {[%clk 0:02:56]}  g4 {[%clk 0:02:42]} 14. Nd2 {[%clk 0:02:56]}  Nh5 {[%clk 0:02:36]} 15. Nc4 {[%clk 0:02:55]}  Rd8 {[%clk 0:02:37]} 16. Ne3 {[%clk 0:02:38]}  Be7 {[%clk 0:02:37]} 17. Qe2 {[%clk 0:02:20]}  Rg8 {[%clk 0:02:33]} 18. Rd2 {[%clk 0:02:18]}  Kf8 {[%clk 0:02:27]} 19. Rhd1 {[%clk 0:02:17]}  Nf4 {[%clk 0:02:23]} 20. Bxf4 {[%clk 0:02:17]}  exf4 {[%clk 0:02:24]} 21. Nf5 {[%clk 0:02:18]}  Bxf5 {[%clk 0:02:24]} 22. exf5 {[%clk 0:02:18]}  d5 {[%clk 0:02:25]} 23. Qxa6 {[%clk 0:02:06]}  Bxh4 {[%clk 0:02:24]} 24. Kb1 {[%clk 0:01:47]}  Bg5 {[%clk 0:02:23]} 25. f3 {[%clk 0:01:46]}  Kg7 {[%clk 0:02:12]} 26. fxg4 {[%clk 0:01:19]}  Ra8 {[%clk 0:02:12]} 27. Qf1 {[%clk 0:01:16]}  Rgb8 {[%clk 0:02:13]} 28. Rd3 {[%clk 0:01:08]}  Qa5 {[%clk 0:02:10]} 29. Qe1 {[%clk 0:00:47]}  Bf6 {[%clk 0:02:08]} 30. a4 {[%clk 0:00:31]}  Qb4 {[%clk 0:02:01]} 31. b3 {[%clk 0:00:21]}  Qa3 {[%clk 0:01:55]} 32. Qd2 {[%clk 0:00:11]}  Rxa4 {[%clk 0:01:52]} 33. Nxa4 {[%clk 0:00:07]}  Qa1# {[%clk 0:01:51]} 0-1


[Site "https://www.chess.com"]

[Event "Titled Tuesday Blitz June 1 2021"]
[White "Goltsev, Dmitry"]
[Black "Martin Carmona, Gaston Manuel"]
[WhiteFideId "24176710"]
[BlackFideId "22284567"]
[WhiteElo "2366"]
[BlackElo "2144"]
[Result "1-0"]
[Round "01"]
[TimeControl "180+1"]
[Date "2021.06.01"]
[WhiteClock "0:00:51"]
[BlackClock "0:01:17"]

1. e4 {[%clk 0:02:59]}  c5 {[%clk 0:02:57]} 2. Nf3 {[%clk 0:02:59]}  d6 {[%clk 0:02:58]} 3. d4 {[%clk 0:02:59]}  cxd4 {[%clk 0:02:59]} 4. Nxd4 {[%clk 0:03:00]}  Nf6 {[%clk 0:02:58]} 5. Nc3 {[%clk 0:03:01]}  a6 {[%clk 0:02:59]} 6. Be2 {[%clk 0:02:59]}  e5 {[%clk 0:02:59]} 7. Nb3 {[%clk 0:02:56]}  Be7 {[%clk 0:02:59]} 8. O-O {[%clk 0:02:55]}  O-O {[%clk 0:02:59]} 9. f4 {[%clk 0:02:55]}  exf4 {[%clk 0:02:56]} 10. Bxf4 {[%clk 0:02:55]}  Be6 {[%clk 0:02:54]} 11. e5 {[%clk 0:02:49]}  dxe5 {[%clk 0:02:51]} 12. Bxe5 {[%clk 0:02:49]}  Nc6 {[%clk 0:02:50]} 13. Bf4 {[%clk 0:02:45]}  Qb6+ {[%clk 0:02:49]} 14. Kh1 {[%clk 0:02:45]}  Rfd8 {[%clk 0:02:47]} 15. Qe1 {[%clk 0:02:43]}  Nb4 {[%clk 0:02:47]} 16. Qg3 {[%clk 0:02:36]}  Rac8 {[%clk 0:02:40]} 17. Rac1 {[%clk 0:02:29]}  Bd6 {[%clk 0:02:30]} 18. Na4 {[%clk 0:02:14]}  Qc7 {[%clk 0:02:15]} 19. Bxd6 {[%clk 0:01:48]}  Qxd6 {[%clk 0:02:16]} 20. Qxd6 {[%clk 0:01:45]}  Rxd6 {[%clk 0:02:17]} 21. Nc3 {[%clk 0:01:35]}  b5 {[%clk 0:02:13]} 22. Bf3 {[%clk 0:01:30]}  Rcd8 {[%clk 0:01:55]} 23. Nc5 {[%clk 0:01:25]}  Bc4 {[%clk 0:01:53]} 24. Rfe1 {[%clk 0:01:22]}  Nxa2 {[%clk 0:01:26]} 25. Nxa2 {[%clk 0:01:15]}  Bxa2 {[%clk 0:01:26]} 26. Nb7 {[%clk 0:01:16]}  R6d7 {[%clk 0:01:27]} 27. Nxd8 {[%clk 0:01:14]}  Rxd8 {[%clk 0:01:27]} 28. b3 {[%clk 0:01:14]}  Rc8 {[%clk 0:01:24]} 29. Bb7 {[%clk 0:01:09]}  Rc3 {[%clk 0:01:21]} 30. Bxa6 {[%clk 0:01:06]}  b4 {[%clk 0:01:22]} 31. Ra1 {[%clk 0:00:57]}  Rxc2 {[%clk 0:01:19]} 32. Re2 {[%clk 0:00:53]}  Bxb3 {[%clk 0:01:16]} 33. Rxc2 {[%clk 0:00:53]}  Bxc2 {[%clk 0:01:17]} 34. Bd3 {[%clk 0:00:51]} 1-0


[Site "https://www.chess.com"]

[Event "Titled Tuesday Blitz June 1 2021"]
[White "Hansen, Eric"]
[Black "Wagner, Dinara"]
[WhiteFideId "2606771"]
[BlackFideId "24157570"]
[WhiteElo "2568"]
[BlackElo "2260"]
[Result "1-0"]
[Round "01"]
[TimeControl "180+1"]
[Date "2021.06.01"]
[WhiteClock "0:00:15"]
[BlackClock "0:00:09"]

1. e4 {[%clk 0:02:58]}  c5 {[%clk 0:02:59]} 2. Nf3 {[%clk 0:02:54]}  d6 {[%clk 0:02:59]} 3. Bb5+ {[%clk 0:02:53]}  Bd7 {[%clk 0:02:58]} 4. Bxd7+ {[%clk 0:02:52]}  Qxd7 {[%clk 0:02:59]} 5. c4 {[%clk 0:02:52]}  e5 {[%clk 0:02:58]} 6. Nc3 {[%clk 0:02:52]}  Nc6 {[%clk 0:02:57]} 7. d3 {[%clk 0:02:53]}  g6 {[%clk 0:02:53]} 8. a3 {[%clk 0:02:48]}  Bg7 {[%clk 0:02:53]} 9. b4 {[%clk 0:02:48]}  cxb4 {[%clk 0:02:47]} 10. axb4 {[%clk 0:02:48]}  Nxb4 {[%clk 0:02:46]} 11. Ba3 {[%clk 0:02:48]}  Na6 {[%clk 0:02:34]} 12. Nb5 {[%clk 0:02:41]}  Nc5 {[%clk 0:02:32]} 13. Bxc5 {[%clk 0:01:05]}  dxc5 {[%clk 0:02:30]} 14. Qa4 {[%clk 0:01:04]}  Rd8 {[%clk 0:02:12]} 15. O-O {[%clk 0:00:40]}  a6 {[%clk 0:02:02]} 16. Nc7+ {[%clk 0:00:40]}  Kf8 {[%clk 0:02:00]} 17. Qa5 {[%clk 0:00:40]}  Ne7 {[%clk 0:01:43]} 18. Rfb1 {[%clk 0:00:30]}  h6 {[%clk 0:00:35]} 19. Rxb7 {[%clk 0:00:30]}  Qxd3 {[%clk 0:00:35]} 20. h3 {[%clk 0:00:21]}  Kg8 {[%clk 0:00:32]} 21. Qxc5 {[%clk 0:00:19]}  Bf6 {[%clk 0:00:19]} 22. Rxa6 {[%clk 0:00:15]}  Kg7 {[%clk 0:00:11]} 23. Rxf6 {[%clk 0:00:15]}  Kxf6 {[%clk 0:00:09]} 24. Qxe5# {[%clk 0:00:15]} 1-0


[Site "https://www.chess.com"]

[Event "Titled Tuesday Blitz June 1 2021"]
[White "Jary, Sergey"]
[Black "Terry, Renato"]
[WhiteFideId "14110350"]
[BlackFideId "3803457"]
[WhiteElo "2260"]
[BlackElo "2581"]
[Result "0-1"]
[Round "01"]
[TimeControl "180+1"]
[Date "2021.06.01"]
[WhiteClock "0:00:13"]
[BlackClock "0:00:03"]

1. Nf3 {[%clk 0:02:59]}  Nf6 {[%clk 0:02:51]} 2. g3 {[%clk 0:02:58]}  d5 {[%clk 0:02:51]} 3. Bg2 {[%clk 0:02:53]}  c6 {[%clk 0:02:52]} 4. O-O {[%clk 0:02:53]}  Bg4 {[%clk 0:02:52]} 5. c4 {[%clk 0:02:52]}  e6 {[%clk 0:02:51]} 6. Qc2 {[%clk 0:02:52]}  Nbd7 {[%clk 0:02:50]} 7. d3 {[%clk 0:02:52]}  Be7 {[%clk 0:02:48]} 8. b3 {[%clk 0:02:52]}  O-O {[%clk 0:02:42]} 9. Bb2 {[%clk 0:02:45]}  a5 {[%clk 0:02:38]} 10. a3 {[%clk 0:02:44]}  Re8 {[%clk 0:02:37]} 11. Nbd2 {[%clk 0:02:43]}  Bf8 {[%clk 0:02:04]} 12. Rfd1 {[%clk 0:02:35]}  Qb6 {[%clk 0:01:53]} 13. Bd4 {[%clk 0:02:32]}  Bc5 {[%clk 0:01:45]} 14. Bxc5 {[%clk 0:02:28]}  Nxc5 {[%clk 0:01:46]} 15. Rab1 {[%clk 0:02:27]}  Ncd7 {[%clk 0:01:39]} 16. Qc3 {[%clk 0:02:23]}  e5 {[%clk 0:01:39]} 17. h3 {[%clk 0:02:15]}  Bxf3 {[%clk 0:01:38]} 18. Nxf3 {[%clk 0:02:12]}  e4 {[%clk 0:01:32]} 19. Nd4 {[%clk 0:02:10]}  Ne5 {[%clk 0:01:16]} 20. c5 {[%clk 0:02:06]}  Qc7 {[%clk 0:01:16]} 21. dxe4 {[%clk 0:02:02]}  dxe4 {[%clk 0:01:14]} 22. Nf5 {[%clk 0:02:00]}  Nd5 {[%clk 0:01:14]} 23. Qc1 {[%clk 0:01:55]}  e3 {[%clk 0:01:12]} 24. f4 {[%clk 0:01:51]}  Ng6 {[%clk 0:01:06]} 25. Bxd5 {[%clk 0:01:44]}  cxd5 {[%clk 0:01:07]} 26. Qc3 {[%clk 0:01:43]}  f6 {[%clk 0:00:57]} 27. Rxd5 {[%clk 0:01:43]}  Rad8 {[%clk 0:00:45]} 28. Qc4 {[%clk 0:01:37]}  Kh8 {[%clk 0:00:41]} 29. Rbd1 {[%clk 0:01:35]}  Rxd5 {[%clk 0:00:40]} 30. Rxd5 {[%clk 0:01:34]}  Ne7 {[%clk 0:00:25]} 31. Nxe7 {[%clk 0:01:31]}  Qxe7 {[%clk 0:00:26]} 32. Qd4 {[%clk 0:01:29]}  h6 {[%clk 0:00:24]} 33. b4 {[%clk 0:01:25]}  axb4 {[%clk 0:00:21]} 34. axb4 {[%clk 0:01:25]}  Qe6 {[%clk 0:00:20]} 35. Rd8 {[%clk 0:01:22]}  Rxd8 {[%clk 0:00:19]} 36. Qxd8+ {[%clk 0:01:22]}  Kh7 {[%clk 0:00:19]} 37. Qd3+ {[%clk 0:01:21]}  f5 {[%clk 0:00:19]} 38. Kg2 {[%clk 0:01:21]}  Qc6+ {[%clk 0:00:18]} 39. Kh2 {[%clk 0:01:21]}  Qe6 {[%clk 0:00:18]} 40. b5 {[%clk 0:01:14]}  g6 {[%clk 0:00:14]} 41. c6 {[%clk 0:01:07]}  bxc6 {[%clk 0:00:14]} 42. bxc6 {[%clk 0:00:57]}  Qxc6 {[%clk 0:00:14]} 43. Qxe3 {[%clk 0:00:57]}  Qb7 {[%clk 0:00:11]} 44. g4 {[%clk 0:00:57]}  Qf7 {[%clk 0:00:04]} 45. Qe5 {[%clk 0:00:54]}  Qd7 {[%clk 0:00:04]} 46. gxf5 {[%clk 0:00:52]}  gxf5 {[%clk 0:00:04]} 47. Kg3 {[%clk 0:00:52]}  Qf7 {[%clk 0:00:04]} 48. Kf3 {[%clk 0:00:50]}  Qh5+ {[%clk 0:00:04]} 49. Kg2 {[%clk 0:00:49]}  Qg6+ {[%clk 0:00:03]} 50. Kf2 {[%clk 0:00:49]}  Qf7 {[%clk 0:00:04]} 51. h4 {[%clk 0:00:48]}  Qh5 {[%clk 0:00:02]} 52. Ke3 {[%clk 0:00:47]}  Kg8 {[%clk 0:00:03]} 53. Kd4 {[%clk 0:00:45]}  Kf7 {[%clk 0:00:02]} 54. Qd5+ {[%clk 0:00:44]}  Kg7 {[%clk 0:00:02]} 55. Qe5+ {[%clk 0:00:43]}  Kf7 {[%clk 0:00:03]} 56. Qc7+ {[%clk 0:00:43]}  Kg6 {[%clk 0:00:02]} 57. Qc6+ {[%clk 0:00:41]}  Kg7 {[%clk 0:00:02]} 58. Qd7+ {[%clk 0:00:41]}  Kf8 {[%clk 0:00:02]} 59. Ke5 {[%clk 0:00:37]}  Qxe2+ {[%clk 0:00:02]} 60. Kf6 {[%clk 0:00:37]}  Qb2+ {[%clk 0:00:02]} 61. Kg6 {[%clk 0:00:36]}  Qg2+ {[%clk 0:00:02]} 62. Kf6 {[%clk 0:00:34]}  Qb2+ {[%clk 0:00:01]} 63. Ke6 {[%clk 0:00:34]}  Qe2+ {[%clk 0:00:01]} 64. Kd6 {[%clk 0:00:33]}  Qd2+ {[%clk 0:00:01]} 65. Kc7 {[%clk 0:00:33]}  Qxf4+ {[%clk 0:00:01]} 66. Kd8 {[%clk 0:00:31]}  Qe4 {[%clk 0:00:02]} 67. Qd6+ {[%clk 0:00:30]}  Kg7 {[%clk 0:00:03]} 68. Qc7+ {[%clk 0:00:28]}  Kg6 {[%clk 0:00:03]} 69. Qg3+ {[%clk 0:00:27]}  Kh5 {[%clk 0:00:04]} 70. Kd7 {[%clk 0:00:27]}  Qxh4 {[%clk 0:00:03]} 71. Qg7 {[%clk 0:00:25]}  Qe4 {[%clk 0:00:03]} 72. Qf7+ {[%clk 0:00:24]}  Kg5 {[%clk 0:00:03]} 73. Qg7+ {[%clk 0:00:24]}  Kh5 {[%clk 0:00:03]} 74. Qf7+ {[%clk 0:00:24]}  Kg4 {[%clk 0:00:04]} 75. Qg6+ {[%clk 0:00:23]}  Kf3 {[%clk 0:00:04]} 76. Qxh6 {[%clk 0:00:21]}  f4 {[%clk 0:00:04]} 77. Qh1+ {[%clk 0:00:20]}  Ke3 {[%clk 0:00:05]} 78. Qe1+ {[%clk 0:00:20]}  Kd4 {[%clk 0:00:06]} 79. Qb4+ {[%clk 0:00:20]}  Kd3 {[%clk 0:00:05]} 80. Qb1+ {[%clk 0:00:19]}  Ke3 {[%clk 0:00:05]} 81. Qe1+ {[%clk 0:00:19]}  Kd4 {[%clk 0:00:05]} 82. Qb4+ {[%clk 0:00:18]}  Ke5 {[%clk 0:00:05]} 83. Qe7+ {[%clk 0:00:18]}  Kf5 {[%clk 0:00:03]} 84. Qh7+ {[%clk 0:00:17]}  Ke5 {[%clk 0:00:03]} 85. Qe7+ {[%clk 0:00:17]}  Kd5 {[%clk 0:00:04]} 86. Qf7+ {[%clk 0:00:16]}  Kc5 {[%clk 0:00:03]} 87. Qf8+ {[%clk 0:00:14]}  Kc4 {[%clk 0:00:03]} 88. Qa3 {[%clk 0:00:13]}  Qd3+ {[%clk 0:00:03]} 0-1


[Site "https://www.chess.com"]

[Event "Titled Tuesday Blitz June 1 2021"]
[White "Jobava, Baadur"]
[Black "Korkmaz, Necmettin"]
[WhiteFideId "13601520"]
[BlackFideId "6303285"]
[WhiteElo "2748"]
[BlackElo "2094"]
[Result "1-0"]
[Round "01"]
[TimeControl "180+1"]
[Date "2021.06.01"]
[WhiteClock "0:01:59"]
[BlackClock "0:00:41"]

1. e4 {[%clk 0:02:57]}  e6 {[%clk 0:02:56]} 2. d4 {[%clk 0:02:56]}  d5 {[%clk 0:02:54]} 3. Nc3 {[%clk 0:02:57]}  Nf6 {[%clk 0:02:53]} 4. Bg5 {[%clk 0:02:52]}  Be7 {[%clk 0:02:51]} 5. exd5 {[%clk 0:02:50]}  Nxd5 {[%clk 0:02:50]} 6. Bxe7 {[%clk 0:02:49]}  Qxe7 {[%clk 0:02:49]} 7. Bd3 {[%clk 0:02:48]}  Nxc3 {[%clk 0:02:44]} 8. bxc3 {[%clk 0:02:48]}  e5 {[%clk 0:02:44]} 9. Ne2 {[%clk 0:02:47]}  exd4 {[%clk 0:02:42]} 10. cxd4 {[%clk 0:02:46]}  O-O {[%clk 0:02:42]} 11. O-O {[%clk 0:02:47]}  Nc6 {[%clk 0:02:40]} 12. Re1 {[%clk 0:02:46]}  Bg4 {[%clk 0:02:38]} 13. c3 {[%clk 0:02:46]}  Rfe8 {[%clk 0:02:37]} 14. h3 {[%clk 0:02:46]}  Bh5 {[%clk 0:02:36]} 15. Qb3 {[%clk 0:02:42]}  Rab8 {[%clk 0:02:27]} 16. Nf4 {[%clk 0:02:38]}  Qxe1+ {[%clk 0:02:25]} 17. Rxe1 {[%clk 0:02:39]}  Rxe1+ {[%clk 0:02:25]} 18. Kh2 {[%clk 0:02:40]}  Bg6 {[%clk 0:02:26]} 19. Nxg6 {[%clk 0:02:35]}  hxg6 {[%clk 0:02:27]} 20. Bxg6 {[%clk 0:02:36]}  Re7 {[%clk 0:02:25]} 21. Bd3 {[%clk 0:02:32]}  b6 {[%clk 0:02:15]} 22. Qd5 {[%clk 0:02:29]}  Na5 {[%clk 0:02:11]} 23. h4 {[%clk 0:02:29]}  c6 {[%clk 0:02:07]} 24. Qg5 {[%clk 0:02:27]}  Re6 {[%clk 0:02:00]} 25. h5 {[%clk 0:02:27]}  Rbe8 {[%clk 0:01:59]} 26. Qf5 {[%clk 0:02:24]}  Rh6 {[%clk 0:01:57]} 27. g4 {[%clk 0:02:21]}  Kf8 {[%clk 0:01:40]} 28. Kg3 {[%clk 0:02:15]}  Ree6 {[%clk 0:01:22]} 29. Qf4 {[%clk 0:02:11]}  Re8 {[%clk 0:01:08]} 30. Qc7 {[%clk 0:02:07]}  c5 {[%clk 0:00:53]} 31. d5 {[%clk 0:02:02]}  c4 {[%clk 0:00:45]} 32. Bf5 {[%clk 0:02:02]}  g6 {[%clk 0:00:45]} 33. hxg6 {[%clk 0:02:00]}  fxg6 {[%clk 0:00:41]} 34. Be6 {[%clk 0:01:59]}  Re7 {[%clk 0:00:41]} 35. Qd8+ {[%clk 0:01:59]} 1-0


[Site "https://www.chess.com"]

[Event "Titled Tuesday Blitz June 1 2021"]
[White "Koc, Przemyslaw"]
[Black "Alekseenko, Kirill"]
[WhiteFideId "1109081"]
[BlackFideId "4135539"]
[WhiteElo "2265"]
[BlackElo "2580"]
[Result "0-1"]
[Round "01"]
[TimeControl "180+1"]
[Date "2021.06.01"]
[WhiteClock "0:00:20"]
[BlackClock "0:00:43"]

1. d4 {[%clk 0:02:59]}  d5 {[%clk 0:03:00]} 2. Nc3 {[%clk 0:02:57]}  Nf6 {[%clk 0:02:58]} 3. Bf4 {[%clk 0:02:58]}  e6 {[%clk 0:02:58]} 4. e3 {[%clk 0:02:58]}  a6 {[%clk 0:02:56]} 5. g4 {[%clk 0:02:57]}  b5 {[%clk 0:02:51]} 6. g5 {[%clk 0:02:55]}  Nfd7 {[%clk 0:02:51]} 7. Qf3 {[%clk 0:02:50]}  Bb7 {[%clk 0:02:47]} 8. Qg3 {[%clk 0:02:48]}  c5 {[%clk 0:02:46]} 9. Nf3 {[%clk 0:02:45]}  Nc6 {[%clk 0:02:40]} 10. Bxb5 {[%clk 0:02:36]}  axb5 {[%clk 0:02:36]} 11. Bc7 {[%clk 0:02:31]}  Qc8 {[%clk 0:02:36]} 12. Nxb5 {[%clk 0:02:31]}  Ba6 {[%clk 0:02:30]} 13. Nd6+ {[%clk 0:02:16]}  Bxd6 {[%clk 0:02:28]} 14. Bxd6 {[%clk 0:02:17]}  Nb4 {[%clk 0:02:21]} 15. Kd2 {[%clk 0:02:06]}  Qc6 {[%clk 0:01:43]} 16. a3 {[%clk 0:01:57]}  Nxc2 {[%clk 0:01:41]} 17. Kxc2 {[%clk 0:01:52]}  cxd4+ {[%clk 0:01:41]} 18. Kd2 {[%clk 0:01:51]}  Qb5 {[%clk 0:01:37]} 19. exd4 {[%clk 0:00:59]}  Qe2+ {[%clk 0:01:25]} 20. Kc1 {[%clk 0:00:59]}  Rc8+ {[%clk 0:01:24]} 21. Bc7 {[%clk 0:00:51]}  e5 {[%clk 0:01:08]} 22. Nxe5 {[%clk 0:00:27]}  Rxc7+ {[%clk 0:01:07]} 23. Kb1 {[%clk 0:00:28]}  O-O {[%clk 0:00:52]} 24. Ka2 {[%clk 0:00:25]}  Nxe5 {[%clk 0:00:50]} 25. Qxe5 {[%clk 0:00:24]}  Bc4+ {[%clk 0:00:50]} 26. Kb1 {[%clk 0:00:20]}  Qd3+ {[%clk 0:00:46]} 27. Kc1 {[%clk 0:00:20]}  Rfc8 {[%clk 0:00:43]} 0-1


[Site "https://www.chess.com"]